[Event "RUS-ch Rapid 2021"]
[Site "Sochi"]
[Date "2021.10.13"]
[Round "8.4"]
[White "Timofeev, Artyom"]
[Black "Lysyj, Igor"]
[Result "1/2-1/2"]
[ECO "A14"]
[WhiteElo "2586"]
[BlackElo "2603"]
[Annotator "RC"]
[PlyCount "38"]
[EventDate "2021.10.12"]
[EventType "swiss"]
[EventCountry "RUS"]
[SourceTitle "playchess.com"]
[Source "ChessBase"]
[SourceQuality "1"]
[TimeControl "900+10"]

1. c4 {[%emt 0:00:04]} e6 {[%emt 0:00:07]} 2. Nf3 {[%emt 0:00:00]} Nf6 {
[%emt 0:00:06]} 3. b3 {[%emt 0:00:14]} Be7 {[%emt 0:00:14]} 4. Bb2 {[%emt 0:00:
00]} O-O {[%emt 0:00:02]} 5. g3 {[%emt 0:01:24]} d5 {[%emt 0:00:09]} 6. Bg2 {
[%emt 0:00:00]} b6 {[%emt 0:00:01]} 7. cxd5 {[%emt 0:00:26]} Nxd5 {[%emt 0:00:
00]} 8. O-O {[%emt 0:00:13]} Bb7 {[%emt 0:00:00]} 9. d4 {[%emt 0:00:07]} Nd7 {
[%emt 0:00:09]} 10. Nbd2 {[%emt 0:00:19]} N5f6 {[%emt 0:00:31]} 11. Nc4 {
[%emt 0:01:19]} c5 {[%emt 0:00:06]} 12. Rc1 {[%emt 0:00:32]} Rc8 {[%emt 0:00:
12]} 13. dxc5 {[%emt 0:01:08]} Nxc5 {[%emt 0:00:19]} 14. Nce5 {[%emt 0:00:00]}
Nd5 {[%emt 0:01:37]} 15. Ng4 {[%emt 0:03:34]} Nf6 {[%emt 0:01:00]} 16. Nge5 {
[%emt 0:01:26]} Nd5 {[%emt 0:00:17]} 17. Ng4 {[%emt 0:00:00]} Nf6 {[%emt 0:00:
00]} 18. Nge5 {[%emt 0:00:00]} Nd5 {[%emt 0:00:00]} 19. Ng4 {[%emt 0:00:00]}
Ra8 {[%emt 0:00:03]} 1/2-1/2

[Event "RUS-ch Rapid 2021"]
[Site "Sochi"]
[Date "2021.10.13"]
[Round "8.5"]
[White "Alekseev, Evgeny"]
[Black "Pridorozhni, Aleksei"]
[Result "1/2-1/2"]
[ECO "B45"]
[WhiteElo "2602"]
[BlackElo "2564"]
[Annotator "RC"]
[PlyCount "83"]
[EventDate "2021.10.12"]
[EventType "swiss"]
[EventCountry "RUS"]
[SourceTitle "playchess.com"]
[Source "ChessBase"]
[SourceQuality "1"]
[TimeControl "900+10"]

1. e4 {[%emt 0:00:04]} c5 {[%emt 0:00:00]} 2. Nf3 {[%emt 0:00:00]} e6 {[%emt 0:
00:07]} 3. d4 {[%emt 0:00:00]} cxd4 {[%emt 0:00:00]} 4. Nxd4 {[%emt 0:00:05]}
Nf6 {[%emt 0:00:00]} 5. Nc3 {[%emt 0:00:00]} Nc6 {[%emt 0:00:04]} 6. Ndb5 {
[%emt 0:00:07]} Bc5 {[%emt 0:00:05]} 7. Bf4 {[%emt 0:00:10]} O-O {[%emt 0:00:
00]} 8. Bc7 {[%emt 0:00:00]} Qe7 {[%emt 0:00:01]} 9. Bd6 {[%emt 0:00:00]} Bxd6
{[%emt 0:00:01]} 10. Qxd6 {[%emt 0:00:02]} Ne8 {[%emt 0:00:07]} 11. Qxe7 {
[%emt 0:00:27]} Nxe7 {[%emt 0:00:00]} 12. O-O-O {[%emt 0:01:06]} f5 {[%emt 0:
00:17]} 13. f3 {[%emt 0:01:17]} fxe4 {[%emt 0:00:11]} 14. Nxe4 {[%emt 0:00:20]}
d5 {[%emt 0:00:03]} 15. Nc5 {[%emt 0:01:01]} b6 {[%emt 0:00:39]} 16. Nd3 {
[%emt 0:00:15]} Nc6 {[%emt 0:00:08]} 17. Re1 {[%emt 0:00:26]} a6 {[%emt 0:01:
35]} 18. Nc3 {[%emt 0:00:11]} Nd6 {[%emt 0:01:25]} 19. Ne5 {[%emt 0:00:09]}
Nxe5 {[%emt 0:00:18]} 20. Rxe5 {[%emt 0:00:00]} Bd7 {[%emt 0:00:53]} 21. Bd3 {
[%emt 0:00:38]} b5 {[%emt 0:00:16]} 22. Rhe1 {[%emt 0:02:27]} Rad8 {[%emt 0:00:
30]} 23. Rh5 {[%emt 0:01:12]} g6 {[%emt 0:00:24]} 24. Rhe5 {[%emt 0:00:43]} Kg7
{[%emt 0:00:07]} 25. R5e2 {[%emt 0:00:49]} b4 {[%emt 0:00:43]} 26. Nd1 {
[%emt 0:00:11]} a5 {[%emt 0:00:00]} 27. Nf2 {[%emt 0:00:15]} Rc8 {[%emt 0:00:
31]} 28. Ng4 {[%emt 0:00:13]} Nf7 {[%emt 0:00:08]} 29. Kd2 {[%emt 0:00:26]} Rc7
{[%emt 0:00:49]} 30. f4 {[%emt 0:01:22]} Rfc8 {[%emt 0:00:47]} 31. Ne5 {
[%emt 0:01:01]} Nxe5 {[%emt 0:00:00]} 32. Rxe5 {[%emt 0:00:00]} Rf8 {[%emt 0:
00:24]} 33. g3 {[%emt 0:00:00]} Kf6 {[%emt 0:01:02]} 34. h4 {[%emt 0:00:05]} h5
{[%emt 0:00:10]} 35. Ke3 {[%emt 0:01:15]} Rfc8 {[%emt 0:00:00]} 36. Re2 {
[%emt 0:00:03]} a4 {[%emt 0:00:40]} 37. b3 {[%emt 0:00:54]} Rc3 {[%emt 0:00:50]
} 38. Kd4 {[%emt 0:00:00]} a3 {[%emt 0:00:43]} 39. Rg5 {[%emt 0:00:13]} Be8 {
[%emt 0:00:03]} 40. Rge5 {[%emt 0:00:36]} Bd7 {[%emt 0:00:01]} 41. Rg5 {
[%emt 0:00:08]} Be8 {[%emt 0:00:03]} 42. Rge5 {[%emt 0:00:14]} 1/2-1/2

[Event "RUS-ch Rapid 2021"]
[Site "Sochi"]
[Date "2021.10.13"]
[Round "8.6"]
[White "Sarana, Alexey"]
[Black "Vastrukhin, Oleg"]
[Result "1/2-1/2"]
[ECO "B06"]
[WhiteElo "2649"]
[BlackElo "2382"]
[Annotator "RC"]
[PlyCount "82"]
[EventDate "2021.10.12"]
[EventType "swiss"]
[EventCountry "RUS"]
[SourceTitle "playchess.com"]
[Source "ChessBase"]
[SourceQuality "1"]
[TimeControl "900+10"]

1. d4 {[%emt 0:00:00]} g6 {[%emt 0:00:00]} 2. e4 {[%emt 0:00:09]} Bg7 {[%emt 0:
00:10]} 3. Nc3 {[%emt 0:00:00]} d5 {[%emt 0:00:17]} 4. exd5 {[%emt 0:00:00]}
Nf6 {[%emt 0:00:14]} 5. Bb5+ {[%emt 0:00:29]} Nbd7 {[%emt 0:00:00]} 6. Nge2 {
[%emt 0:00:00]} O-O {[%emt 0:00:03]} 7. Nf4 {[%emt 0:00:12]} Nb6 {[%emt 0:00:
00]} 8. Qf3 {[%emt 0:00:02]} Bg4 {[%emt 0:00:10]} 9. Qg3 {[%emt 0:00:09]} Bf5 {
[%emt 0:00:04]} 10. Bd3 {[%emt 0:00:19]} Bxd3 {[%emt 0:00:05]} 11. Qxd3 {
[%emt 0:00:34]} Nbxd5 {[%emt 0:00:18]} 12. Nce2 {[%emt 0:00:06]} c5 {[%emt 0:
00:56]} 13. dxc5 {[%emt 0:00:15]} Qa5+ {[%emt 0:00:01]} 14. c3 {[%emt 0:00:11]}
Qxc5 {[%emt 0:00:11]} 15. O-O {[%emt 0:00:16]} Rfd8 {[%emt 0:00:06]} 16. Qf3 {
[%emt 0:00:19]} e5 {[%emt 0:00:56]} 17. Nxd5 {[%emt 0:00:00]} Qxd5 {[%emt 0:00:
08]} 18. Bg5 {[%emt 0:00:57]} Qxf3 {[%emt 0:00:22]} 19. gxf3 {[%emt 0:00:04]}
Rd3 {[%emt 0:00:09]} 20. Rad1 {[%emt 0:00:58]} Rad8 {[%emt 0:00:36]} 21. Rxd3 {
[%emt 0:00:06]} Rxd3 {[%emt 0:00:00]} 22. Kg2 {[%emt 0:00:02]} h6 {[%emt 0:00:
50]} 23. Be3 {[%emt 0:00:28]} Nd5 {[%emt 0:00:10]} 24. Bc1 {[%emt 0:00:07]} b5
{[%emt 0:00:36]} 25. Re1 {[%emt 0:00:05]} f5 {[%emt 0:00:27]} 26. Ng3 {[%emt 0:
00:00]} Kf7 {[%emt 0:00:06]} 27. Nf1 {[%emt 0:00:21]} g5 {[%emt 0:00:40]} 28.
Ne3 {[%emt 0:00:24]} Nf4+ {[%emt 0:01:56]} 29. Kf1 {[%emt 0:00:31]} Kg6 {
[%emt 0:00:16]} 30. c4 {[%emt 0:02:26]} bxc4 {[%emt 0:00:48]} 31. Nxc4 {
[%emt 0:00:00]} Rxf3 {[%emt 0:00:22]} 32. Bxf4 {[%emt 0:00:25]} Rxf4 {[%emt 0:
01:18]} 33. Nxe5+ {[%emt 0:00:00]} Bxe5 {[%emt 0:01:25]} 34. Rxe5 {[%emt 0:00:
04]} Ra4 {[%emt 0:00:07]} 35. a3 {[%emt 0:00:02]} Ra6 {[%emt 0:00:10]} 36. Rb5
{[%emt 0:00:12]} f4 {[%emt 0:00:17]} 37. Kg2 {[%emt 0:00:19]} Kh5 {[%emt 0:00:
03]} 38. h3 {[%emt 0:00:23]} Kh4 {[%emt 0:00:09]} 39. Rb7 {[%emt 0:00:17]} h5 {
[%emt 0:00:15]} 40. Rc7 {[%emt 0:00:00]} Ra5 {[%emt 0:01:45]} 41. Rd7 {[%emt 0:
00:15]} Ra6 {[%emt 0:00:31]} 1/2-1/2

[Event "RUS-ch Rapid 2021"]
[Site "Sochi"]
[Date "2021.10.13"]
[Round "8.8"]
[White "Grachev, Boris"]
[Black "Popov, Valerij"]
[Result "1/2-1/2"]
[ECO "D30"]
[WhiteElo "2615"]
[BlackElo "2537"]
[Annotator "RC"]
[PlyCount "82"]
[EventDate "2021.10.12"]
[EventType "swiss"]
[EventCountry "RUS"]
[SourceTitle "playchess.com"]
[Source "ChessBase"]
[SourceQuality "1"]
[TimeControl "900+10"]

1. d4 {[%emt 0:00:09]} Nf6 {[%emt 0:00:00]} 2. Nf3 {[%emt 0:00:00]} e6 {
[%emt 0:00:11]} 3. c4 {[%emt 0:01:12]} d5 {[%emt 0:00:06]} 4. e3 {[%emt 0:00:
07]} a6 {[%emt 0:00:08]} 5. b3 {[%emt 0:00:10]} c5 {[%emt 0:00:04]} 6. Bd3 {
[%emt 0:00:16]} Nc6 {[%emt 0:00:12]} 7. Bb2 {[%emt 0:00:37]} cxd4 {[%emt 0:00:
39]} 8. exd4 {[%emt 0:00:07]} b6 {[%emt 0:02:24]} 9. O-O {[%emt 0:00:07]} Bb7 {
[%emt 0:00:04]} 10. Nbd2 {[%emt 0:00:32]} Be7 {[%emt 0:00:07]} 11. Qe2 {
[%emt 0:00:19]} O-O {[%emt 0:00:36]} 12. Rfd1 {[%emt 0:01:21]} Nb4 {[%emt 0:01:
32]} 13. Bb1 {[%emt 0:00:00]} Nc6 {[%emt 0:00:14]} 14. a3 {[%emt 0:00:28]} Re8
{[%emt 0:00:13]} 15. Bd3 {[%emt 0:00:16]} Bf8 {[%emt 0:00:13]} 16. Rac1 {
[%emt 0:00:39]} g6 {[%emt 0:00:59]} 17. b4 {[%emt 0:02:00]} dxc4 {[%emt 0:00:
35]} 18. Nxc4 {[%emt 0:00:00]} Bh6 {[%emt 0:02:09]} 19. Rc2 {[%emt 0:00:18]}
Nd5 {[%emt 0:00:24]} 20. g3 {[%emt 0:00:15]} a5 {[%emt 0:03:10]} 21. b5 {
[%emt 0:00:17]} Nce7 {[%emt 0:00:08]} 22. Nce5 {[%emt 0:00:30]} Rc8 {[%emt 0:
00:17]} 23. h4 {[%emt 0:02:23]} Rxc2 {[%emt 0:00:17]} 24. Bxc2 {[%emt 0:00:07]}
Qc8 {[%emt 0:01:30]} 25. Be4 {[%emt 0:00:42]} f6 {[%emt 0:00:26]} 26. Nc4 {
[%emt 0:01:24]} Qd7 {[%emt 0:00:06]} 27. Bd3 {[%emt 0:00:42]} Nf5 {[%emt 0:00:
15]} 28. Re1 {[%emt 0:00:22]} Bf8 {[%emt 0:00:48]} 29. Ncd2 {[%emt 0:00:46]}
Bg7 {[%emt 0:00:34]} 30. Ne4 {[%emt 0:00:20]} Re7 {[%emt 0:00:28]} 31. Rc1 {
[%emt 0:01:13]} Re8 {[%emt 0:00:03]} 32. Re1 {[%emt 0:00:06]} Re7 {[%emt 0:00:
00]} 33. Ned2 {[%emt 0:01:22]} h6 {[%emt 0:00:13]} 34. h5 {[%emt 0:00:15]} g5 {
[%emt 0:00:03]} 35. Nc4 {[%emt 0:00:15]} Nd6 {[%emt 0:00:09]} 36. a4 {[%emt 0:
00:19]} Nxc4 {[%emt 0:01:00]} 37. Bxc4 {[%emt 0:00:00]} Qe8 {[%emt 0:00:32]}
38. Nd2 {[%emt 0:00:28]} f5 {[%emt 0:00:24]} 39. Ba3 {[%emt 0:00:05]} Nb4 {
[%emt 0:00:11]} 40. Bxb4 {[%emt 0:00:49]} axb4 {[%emt 0:00:00]} 41. d5 {
[%emt 0:00:02]} g4 {[%emt 0:00:00]} 1/2-1/2

[Event "RUS-ch Rapid 2021"]
[Site "Sochi"]
[Date "2021.10.13"]
[Round "8.9"]
[White "Dreev, Aleksey"]
[Black "Nesterov, Arseniy"]
[Result "1-0"]
[ECO "D36"]
[WhiteElo "2635"]
[BlackElo "2514"]
[Annotator "RC"]
[PlyCount "159"]
[EventDate "2021.10.12"]
[EventType "swiss"]
[EventCountry "RUS"]
[SourceTitle "playchess.com"]
[Source "ChessBase"]
[SourceQuality "1"]
[TimeControl "900+10"]

1. d4 {[%emt 0:01:26]} d5 {[%emt 0:00:00]} 2. c4 {[%emt 0:00:05]} e6 {[%emt 0:
00:11]} 3. Nc3 {[%emt 0:00:02]} Nf6 {[%emt 0:00:00]} 4. cxd5 {[%emt 0:00:06]}
exd5 {[%emt 0:00:03]} 5. Bg5 {[%emt 0:00:00]} Be7 {[%emt 0:00:01]} 6. e3 {
[%emt 0:00:07]} O-O {[%emt 0:00:10]} 7. Bd3 {[%emt 0:00:17]} Nbd7 {[%emt 0:00:
04]} 8. Nf3 {[%emt 0:00:03]} c6 {[%emt 0:00:13]} 9. Qc2 {[%emt 0:00:07]} h6 {
[%emt 0:00:04]} 10. Bh4 {[%emt 0:00:15]} Re8 {[%emt 0:00:00]} 11. O-O {[%emt 0:
00:18]} Ne4 {[%emt 0:00:00]} 12. Bxe7 {[%emt 0:00:01]} Qxe7 {[%emt 0:00:00]}
13. b4 {[%emt 0:00:04]} a6 {[%emt 0:00:26]} 14. a4 {[%emt 0:00:22]} Ndf6 {
[%emt 0:02:48]} 15. Rab1 {[%emt 0:03:59]} Bf5 {[%emt 0:00:33]} 16. Ne2 {
[%emt 0:02:14]} Bg4 {[%emt 0:02:29]} 17. Ne5 {[%emt 0:00:38]} Bxe2 {[%emt 0:00:
04]} 18. Bxe2 {[%emt 0:00:10]} Nd7 {[%emt 0:00:24]} 19. Nd3 {[%emt 0:00:56]}
Nd6 {[%emt 0:00:10]} 20. Nf4 {[%emt 0:01:29]} Rec8 {[%emt 0:00:40]} 21. b5 {
[%emt 0:00:17]} cxb5 {[%emt 0:00:05]} 22. Qa2 {[%emt 0:00:17]} bxa4 {[%emt 0:
00:43]} 23. Nxd5 {[%emt 0:01:43]} Qe6 {[%emt 0:00:04]} 24. h3 {[%emt 0:00:24]}
Kh8 {[%emt 0:00:48]} 25. Qxa4 {[%emt 0:00:17]} b5 {[%emt 0:00:07]} 26. Qb3 {
[%emt 0:00:16]} Nc4 {[%emt 0:02:35]} 27. Nf4 {[%emt 0:00:02]} Qd6 {[%emt 0:00:
04]} 28. Rfd1 {[%emt 0:00:06]} Rab8 {[%emt 0:00:10]} 29. g3 {[%emt 0:00:25]} a5
{[%emt 0:02:01]} 30. e4 {[%emt 0:00:01]} a4 {[%emt 0:00:34]} 31. Qf3 {[%emt 0:
00:02]} a3 {[%emt 0:01:06]} 32. e5 {[%emt 0:00:03]} Qa6 {[%emt 0:01:02]} 33. e6
{[%emt 0:00:27]} fxe6 {[%emt 0:00:41]} 34. Ng6+ {[%emt 0:00:00]} Kg8 {[%emt 0:
00:04]} 35. Ne7+ {[%emt 0:00:09]} Kh8 {[%emt 0:00:00]} 36. Nxc8 {[%emt 0:01:13]
} Rxc8 {[%emt 0:00:00]} 37. Qb3 {[%emt 0:00:04]} Nb2 {[%emt 0:01:54]} 38. Re1 {
[%emt 0:00:28]} Nf6 {[%emt 0:00:52]} 39. Bxb5 {[%emt 0:00:29]} Qa7 {[%emt 0:00:
08]} 40. Qxe6 {[%emt 0:00:28]} Rb8 {[%emt 0:00:03]} 41. Qe5 {[%emt 0:00:32]}
Rd8 {[%emt 0:00:21]} 42. Ra1 {[%emt 0:00:08]} Rd5 {[%emt 0:00:06]} 43. Qe2 {
[%emt 0:00:15]} Qa5 {[%emt 0:00:18]} 44. Bd3 {[%emt 0:00:11]} Rxd4 {[%emt 0:00:
12]} 45. Bg6 {[%emt 0:00:19]} Rd8 {[%emt 0:00:06]} 46. Qe7 {[%emt 0:00:24]} Ra8
{[%emt 0:00:01]} 47. Re5 {[%emt 0:00:16]} Qc3 {[%emt 0:00:02]} 48. Re3 {
[%emt 0:00:04]} Qd4 {[%emt 0:00:16]} 49. Rexa3 {[%emt 0:00:19]} Rg8 {[%emt 0:
00:10]} 50. Qe3 {[%emt 0:00:21]} Qd5 {[%emt 0:00:17]} 51. Qb3 {[%emt 0:00:07]}
Nc4 {[%emt 0:00:15]} 52. Ra4 {[%emt 0:00:10]} Qg5 {[%emt 0:00:02]} 53. Qxc4 {
[%emt 0:00:10]} Qxg6 {[%emt 0:00:00]} 54. Ra8 {[%emt 0:00:07]} Rxa8 {[%emt 0:
00:03]} 55. Rxa8+ {[%emt 0:00:00]} Kh7 {[%emt 0:00:01]} 56. Ra1 {[%emt 0:00:17]
} Qf5 {[%emt 0:00:09]} 57. Kg2 {[%emt 0:00:39]} Ne4 {[%emt 0:00:02]} 58. Qc2 {
[%emt 0:00:09]} Nxg3 {[%emt 0:00:02]} 59. Qxf5+ {[%emt 0:00:09]} Nxf5 {[%emt 0:
00:01]} 60. Ra6 {[%emt 0:00:02]} Kg8 {[%emt 0:00:36]} 61. Kf3 {[%emt 0:00:05]}
Kf7 {[%emt 0:00:03]} 62. Ke4 {[%emt 0:00:03]} Ne7 {[%emt 0:00:07]} 63. f4 {
[%emt 0:00:01]} Ng6 {[%emt 0:00:37]} 64. f5 {[%emt 0:00:19]} Nf8 {[%emt 0:00:
02]} 65. Ra7+ {[%emt 0:00:20]} Kf6 {[%emt 0:00:05]} 66. Kf4 {[%emt 0:00:06]}
Nh7 {[%emt 0:00:37]} 67. Ra6+ {[%emt 0:00:31]} Kf7 {[%emt 0:00:02]} 68. Ra7+ {
[%emt 0:00:00]} Kf6 {[%emt 0:00:06]} 69. Ra6+ {[%emt 0:00:04]} Kf7 {[%emt 0:00:
01]} 70. Ke5 {[%emt 0:00:00]} Ng5 {[%emt 0:00:01]} 71. Ra7+ {[%emt 0:00:03]}
Kg8 {[%emt 0:00:31]} 72. Ra3 {[%emt 0:00:03]} Kf8 {[%emt 0:00:22]} 73. h4 {
[%emt 0:00:08]} Nf7+ {[%emt 0:00:08]} 74. Ke6 {[%emt 0:00:03]} Nd8+ {[%emt 0:
00:03]} 75. Kd7 {[%emt 0:00:02]} Nb7 {[%emt 0:00:03]} 76. Ra8+ {[%emt 0:00:38]}
Kf7 {[%emt 0:00:02]} 77. Ra7 {[%emt 0:00:03]} Kf6 {[%emt 0:00:10]} 78. Rxb7 {
[%emt 0:00:02]} Kxf5 {[%emt 0:00:00]} 79. Rb5+ {[%emt 0:00:06]} Kg4 {[%emt 0:
00:01]} 80. h5 {[%emt 0:00:03]} 1-0

[Event "RUS-ch Rapid 2021"]
[Site "Sochi"]
[Date "2021.10.13"]
[Round "8.10"]
[White "Bologan, Victor"]
[Black "Murzin, Volodar"]
[Result "0-1"]
[ECO "B12"]
[WhiteElo "2574"]
[BlackElo "2513"]
[Annotator "ChessBase"]
[PlyCount "72"]
[EventDate "2021.10.12"]
[EventType "swiss"]
[EventCountry "RUS"]
[SourceTitle "playchess.com"]
[Source "ChessBase"]
[SourceQuality "1"]
[TimeControl "900+10"]

1. e4 {[%emt 0:00:00]} c6 {[%emt 0:00:05]} 2. d4 {[%emt 0:00:01]} d5 {[%emt 0:
00:00]} 3. e5 {[%emt 0:00:07]} Bf5 {[%emt 0:00:00]} 4. Nf3 {[%emt 0:00:03]} e6
{[%emt 0:00:08]} 5. Nbd2 {[%emt 0:00:00]} h6 {[%emt 0:00:26]} 6. Nb3 {[%emt 0:
00:06]} Nd7 {[%emt 0:00:14]} 7. Be2 {[%emt 0:00:06]} Ne7 {[%emt 0:00:10]} 8.
O-O {[%emt 0:00:04]} g5 {[%emt 0:00:18]} 9. Ne1 {[%emt 0:00:01]} Qc7 {[%emt 0:
00:26]} 10. Nd3 {[%emt 0:00:00]} Ng6 {[%emt 0:00:29]} 11. Be3 {[%emt 0:00:33]}
Bg7 {[%emt 0:04:46]} 12. f4 {[%emt 0:00:55]} gxf4 {[%emt 0:03:43]} 13. Nxf4 {
[%emt 0:00:08]} Nxf4 {[%emt 0:00:05]} 14. Bxf4 {[%emt 0:00:04]} Qb6 {[%emt 0:
01:25]} 15. a4 {[%emt 0:00:40]} a6 {[%emt 0:00:47]} 16. a5 {[%emt 0:00:05]} Qb4
{[%emt 0:00:01]} 17. Kh1 {[%emt 0:00:24]} O-O-O {[%emt 0:00:42]} 18. Bd3 {
[%emt 0:03:56]} Bxd3 {[%emt 0:01:08]} 19. Qxd3 {[%emt 0:00:03]} Qe7 {[%emt 0:
00:20]} 20. c4 {[%emt 0:00:38]} dxc4 {[%emt 0:00:43]} 21. Qxc4 {[%emt 0:00:00]}
Kb8 {[%emt 0:00:00]} 22. Rf3 {[%emt 0:01:03]} Ka8 {[%emt 0:00:05]} 23. Re1 {
[%emt 0:00:18]} Rde8 {[%emt 0:01:06]} 24. Bd2 {[%emt 0:00:27]} f6 {[%emt 0:00:
58]} 25. exf6 {[%emt 0:00:49]} Bxf6 {[%emt 0:00:26]} 26. Rfe3 {[%emt 0:00:16]}
e5 {[%emt 0:00:19]} 27. Bc3 {[%emt 0:01:27]} Bh4 {[%emt 0:00:38]} 28. g3 {
[%emt 0:00:36]} Bg5 {[%emt 0:00:03]} 29. R3e2 {[%emt 0:01:01]} e4 {[%emt 0:00:
08]} 30. d5 {[%emt 0:00:46]} cxd5 {[%emt 0:00:00]} 31. Qxd5 {[%emt 0:00:06]}
Nf6 {[%emt 0:00:27]} 32. Bxf6 {[%emt 0:01:59]} Qxf6 {[%emt 0:00:05]} 33. Nc5 {
[%emt 0:00:06]} Rh7 {[%emt 0:00:17]} 34. Rxe4 {[%emt 0:02:16]} Rxe4 {[%emt 0:
00:04]} 35. Qxe4 {[%emt 0:00:13]} Re7 {[%emt 0:00:03]} 36. Qxe7 {[%emt 0:00:11]
} Qf3+ {[%emt 0:00:00]} 0-1

[Event "RUS-ch Rapid 2021"]
[Site "Sochi"]
[Date "2021.10.13"]
[Round "8.11"]
[White "Zakhartsov, Vladimir"]
[Black "Afanasiev, Nikita"]
[Result "0-1"]
[ECO "E21"]
[WhiteElo "2514"]
[BlackElo "2560"]
[Annotator "ChessBase"]
[PlyCount "74"]
[EventDate "2021.10.12"]
[EventType "swiss"]
[EventCountry "RUS"]
[SourceTitle "playchess.com"]
[Source "ChessBase"]
[SourceQuality "1"]
[TimeControl "900+10"]

1. d4 {[%emt 0:00:00]} Nf6 {[%emt 0:00:06]} 2. c4 {[%emt 0:00:01]} e6 {[%emt 0:
00:00]} 3. Nc3 {[%emt 0:00:00]} Bb4 {[%emt 0:00:07]} 4. e3 {[%emt 0:00:02]} O-O
{[%emt 0:00:09]} 5. Bd2 {[%emt 0:00:05]} b6 {[%emt 0:00:35]} 6. Nf3 {[%emt 0:
00:05]} Bb7 {[%emt 0:00:05]} 7. Bd3 {[%emt 0:00:06]} Bxc3 {[%emt 0:00:37]} 8.
Bxc3 {[%emt 0:00:02]} Ne4 {[%emt 0:00:00]} 9. Bb4 {[%emt 0:00:03]} d6 {[%emt 0:
01:15]} 10. O-O {[%emt 0:00:00]} Nd7 {[%emt 0:00:19]} 11. Nd2 {[%emt 0:00:56]}
f5 {[%emt 0:02:51]} 12. Bxe4 {[%emt 0:02:27]} fxe4 {[%emt 0:01:10]} 13. Qg4 {
[%emt 0:00:00]} Rf5 {[%emt 0:00:16]} 14. d5 {[%emt 0:00:57]} Nf6 {[%emt 0:01:
05]} 15. Qh3 {[%emt 0:00:15]} Bc8 {[%emt 0:00:00]} 16. dxe6 {[%emt 0:00:57]}
Bxe6 {[%emt 0:01:16]} 17. Bc3 {[%emt 0:00:02]} Qd7 {[%emt 0:02:08]} 18. Qh4 {
[%emt 0:02:24]} Rh5 {[%emt 0:00:17]} 19. Qg3 {[%emt 0:00:21]} Rf8 {[%emt 0:01:
01]} 20. f4 {[%emt 0:00:27]} Bf5 {[%emt 0:00:51]} 21. Rfd1 {[%emt 0:01:57]} Qe6
{[%emt 0:00:42]} 22. b3 {[%emt 0:00:18]} Rh6 {[%emt 0:00:14]} 23. Nf1 {[%emt 0:
00:18]} Rg6 {[%emt 0:01:23]} 24. Qe1 {[%emt 0:00:05]} h5 {[%emt 0:00:33]} 25.
Kh1 {[%emt 0:01:58]} Ng4 {[%emt 0:00:24]} 26. h3 {[%emt 0:00:25]} Nh6 {[%emt 0:
00:00]} 27. Qh4 {[%emt 0:00:12]} Qe8 {[%emt 0:00:44]} 28. Ng3 {[%emt 0:01:22]}
Be6 {[%emt 0:00:11]} 29. Nxh5 {[%emt 0:01:10]} Nf5 {[%emt 0:00:12]} 30. Qf2 {
[%emt 0:00:00]} Rxg2 {[%emt 0:00:34]} 31. Qxg2 {[%emt 0:00:32]} Qxh5 {[%emt 0:
00:00]} 32. Rg1 {[%emt 0:00:22]} Rf7 {[%emt 0:00:00]} 33. Rae1 {[%emt 0:01:12]}
Bd7 {[%emt 0:00:04]} 34. Re2 {[%emt 0:01:38]} Nh4 {[%emt 0:00:24]} 35. Qf2 {
[%emt 0:00:10]} Nf3 {[%emt 0:00:01]} 36. Qg2 {[%emt 0:00:08]} Bxh3 {[%emt 0:00:
12]} 37. Qg6 {[%emt 0:00:11]} Bg2+ {[%emt 0:00:00]} 0-1

[Event "RUS-ch Rapid 2021"]
[Site "Sochi"]
[Date "2021.10.13"]
[Round "8.12"]
[White "Shubin, Kirill"]
[Black "Demidov, Mikhail"]
[Result "0-1"]
[ECO "B06"]
[WhiteElo "2463"]
[BlackElo "2551"]
[Annotator "ChessBase"]
[PlyCount "98"]
[EventDate "2021.10.12"]
[EventType "swiss"]
[EventCountry "RUS"]
[SourceTitle "playchess.com"]
[Source "ChessBase"]
[SourceQuality "1"]
[TimeControl "900+10"]

1. e4 {[%emt 0:00:00]} g6 {[%emt 0:00:00]} 2. d4 {[%emt 0:00:06]} Bg7 {[%emt 0:
00:10]} 3. Nf3 {[%emt 0:00:00]} d6 {[%emt 0:00:00]} 4. Nc3 {[%emt 0:00:09]} Nc6
{[%emt 0:00:08]} 5. d5 {[%emt 0:00:18]} Nb8 {[%emt 0:00:26]} 6. Be3 {[%emt 0:
00:15]} Bg4 {[%emt 0:00:15]} 7. Qd2 {[%emt 0:00:31]} Bxf3 {[%emt 0:00:21]} 8.
gxf3 {[%emt 0:00:03]} c6 {[%emt 0:00:14]} 9. h4 {[%emt 0:01:05]} Nf6 {[%emt 0:
02:25]} 10. O-O-O {[%emt 0:01:33]} Qa5 {[%emt 0:00:53]} 11. Kb1 {[%emt 0:00:53]
} Nbd7 {[%emt 0:00:16]} 12. Bh6 {[%emt 0:00:20]} Bxh6 {[%emt 0:01:59]} 13. Qxh6
{[%emt 0:00:00]} cxd5 {[%emt 0:00:29]} 14. Bb5 {[%emt 0:01:19]} dxe4 {[%emt 0:
03:00]} 15. Qg7 {[%emt 0:01:05]} Rf8 {[%emt 0:02:16]} 16. fxe4 {[%emt 0:01:09]}
O-O-O {[%emt 0:00:43]} 17. Bxd7+ {[%emt 0:00:07]} Kxd7 {[%emt 0:00:17]} 18. Nd5
{[%emt 0:01:44]} Nxd5 {[%emt 0:01:05]} 19. Rxd5 {[%emt 0:00:00]} Qb6 {[%emt 0:
00:17]} 20. e5 {[%emt 0:01:04]} Qxf2 {[%emt 0:00:58]} 21. exd6 {[%emt 0:00:26]}
exd6 {[%emt 0:00:21]} 22. Rhd1 {[%emt 0:00:09]} Kc7 {[%emt 0:00:36]} 23. a4 {
[%emt 0:00:27]} Qxh4 {[%emt 0:00:36]} 24. a5 {[%emt 0:00:14]} a6 {[%emt 0:00:
17]} 25. c4 {[%emt 0:00:51]} Qe4+ {[%emt 0:00:34]} 26. R1d3 {[%emt 0:00:32]}
Kb8 {[%emt 0:00:23]} 27. Qc3 {[%emt 0:00:07]} Rfe8 {[%emt 0:00:07]} 28. Ka2 {
[%emt 0:00:09]} Rc8 {[%emt 0:00:04]} 29. R3d4 {[%emt 0:00:12]} Qe1 {[%emt 0:00:
17]} 30. Qa3 {[%emt 0:00:11]} Re6 {[%emt 0:00:07]} 31. Rxd6 {[%emt 0:00:47]}
Rxd6 {[%emt 0:00:04]} 32. Qxd6+ {[%emt 0:00:10]} Ka8 {[%emt 0:00:02]} 33. Qb6 {
[%emt 0:00:14]} Qe7 {[%emt 0:00:24]} 34. b3 {[%emt 0:00:32]} h5 {[%emt 0:00:08]
} 35. Rd6 {[%emt 0:00:52]} h4 {[%emt 0:00:20]} 36. Qd4 {[%emt 0:00:06]} h3 {
[%emt 0:00:12]} 37. Qd5 {[%emt 0:00:07]} h2 {[%emt 0:00:19]} 38. Rxa6+ {
[%emt 0:00:31]} Kb8 {[%emt 0:00:00]} 39. Rb6 {[%emt 0:00:22]} Rc5 {[%emt 0:00:
11]} 40. Qh1 {[%emt 0:00:43]} Rxa5+ {[%emt 0:00:07]} 41. Kb1 {[%emt 0:00:03]}
Qc7 {[%emt 0:00:22]} 42. Rb4 {[%emt 0:00:24]} Rg5 {[%emt 0:00:01]} 43. Kc2 {
[%emt 0:00:17]} Kc8 {[%emt 0:00:16]} 44. Ra4 {[%emt 0:00:11]} Qg3 {[%emt 0:00:
10]} 45. Ra8+ {[%emt 0:00:22]} Kc7 {[%emt 0:00:00]} 46. Qd1 {[%emt 0:00:02]}
Qf2+ {[%emt 0:00:16]} 47. Kc3 {[%emt 0:00:12]} Rg3+ {[%emt 0:00:07]} 48. Kb4 {
[%emt 0:00:01]} Qb6+ {[%emt 0:00:00]} 49. Ka4 {[%emt 0:00:00]} Qxb3+ {[%emt 0:
00:06]} 0-1